bitfinex/quotes_BTCUSD_20251009
["timestamp","ask_amount","ask_price","bid_price","bid_amount"]
[1760013145541,0.17258811,123070.0,123060.0,0.3623163]
[1760013145753,0.17258811,123070.0,123060.0,0.5927963]
[1760013145959,0.18868811,123070.0,123060.0,0.5927963]
[1760013146390,0.18871539,123070.0,123060.0,0.5927963]
[1760013146550,0.14871539,123070.0,123060.0,0.5927963]
[1760013146749,0.00758516,123070.0,123060.0,0.5927963]
[1760013146959,0.00758516,123070.0,123060.0,0.38920658]
[1760013147158,0.00758516,123070.0,123060.0,0.61968658]
[1760013147654,0.20035484,123090.0,123080.0,0.19264783]
[1760013147824,0.1989684,123090.0,123080.0,0.34375396]
[1760013148338,0.1989684,123090.0,123080.0,0.34403396]
[1760013148761,0.1989684,123090.0,123080.0,0.50652989]
[1760013148907,0.2009684,123090.0,123080.0,0.50661201]
[1760013149483,0.24056587,123090.0,123080.0,0.11335608]
[1760013149662,0.24056587,123090.0,123080.0,0.76663608]
[1760013150259,0.24056587,123090.0,123080.0,0.53587608]
[1760013150441,0.23956587,123090.0,123080.0,0.76659608]
[1760013150650,0.21416587,123090.0,123080.0,0.76659608]
[1760013150853,0.21416587,123090.0,123080.0,0.76655608]
[1760013151240,0.21416587,123090.0,123080.0,0.76755608]
[1760013151465,0.23165954,123090.0,123080.0,0.76755608]
[1760013151627,0.25605954,123090.0,123080.0,0.76755608]
[1760013151827,0.23856587,123090.0,123080.0,0.77570453]
[1760013152116,0.23856587,123090.0,123080.0,0.11435608]
[1760013152293,0.23856587,123090.0,123080.0,0.34503608]
[1760013152539,0.23856587,123090.0,123080.0,0.76755608]
[1760013153258,0.23957393,123090.0,123080.0,0.76755608]
[1760013155005,0.23957393,123090.0,123080.0,0.76747608]
[1760013155795,0.23957393,123090.0,123080.0,0.11435608]
[1760013155973,0.23957393,123090.0,123080.0,0.76747608]
[1760013156184,0.23957393,123090.0,123080.0,0.53687608]
[1760013156395,0.23957393,123090.0,123080.0,0.76747608]
[1760013157979,0.21517393,123090.0,123080.0,0.92997201]
[1760013158207,0.19087826,123090.0,123080.0,0.53687608]
[1760013158440,0.23137826,123090.0,123080.0,0.76743608]
[1760013159407,0.23137826,123090.0,123080.0,0.53687608]
[1760013159613,0.22378425,123090.0,123080.0,0.53687608]
[1760013159807,0.22378425,123090.0,123080.0,0.76743608]
[1760013160701,0.22378425,123090.0,123080.0,0.53687608]
[1760013160896,0.22378425,123090.0,123080.0,0.76739608]
[1760013161110,0.22378425,123090.0,123080.0,0.11435608]
[1760013161327,0.22378425,123090.0,123080.0,0.76735608]
[1760013161528,0.22378425,123090.0,123080.0,0.11435608]
[1760013161803,0.22378425,123090.0,123080.0,0.76735608]
[1760013162303,0.22378425,123090.0,123080.0,0.11435608]
[1760013162486,0.22378425,123090.0,123080.0,0.76735608]
[1760013162690,0.22378425,123090.0,123080.0,0.53683608]
[1760013162900,0.22378425,123090.0,123080.0,0.76731608]
[1760013164171,0.22378425,123090.0,123080.0,0.53683608]
[1760013164402,0.22378425,123090.0,123080.0,0.76731608]
[1760013167207,0.22378425,123090.0,123080.0,0.11435608]
[1760013167411,0.22378425,123090.0,123080.0,0.76727608]
[1760013168336,0.22378425,123090.0,123080.0,0.11435608]
[1760013168536,0.22378425,123090.0,123080.0,0.76723608]
[1760013169432,0.21618079,123090.0,123080.0,0.76723608]
[1760013173073,0.19178079,123090.0,123080.0,0.53683608]
[1760013173277,0.19178079,123090.0,123080.0,0.76719608]
[1760013173435,0.21515079,123090.0,123080.0,0.76719608]
[1760013173634,0.19178079,123090.0,123080.0,0.76719608]
[1760013174018,0.19178079,123090.0,123080.0,0.53683608]
[1760013174524,0.19178079,123090.0,123080.0,0.76715608]
[1760013174931,0.21515079,123090.0,123080.0,0.76715608]
[1760013175429,0.21515079,123090.0,123080.0,0.53683608]
[1760013175629,0.21515079,123090.0,123080.0,0.76711608]
[1760013178631,0.21515079,123090.0,123080.0,0.11435608]
[1760013178835,0.21515079,123090.0,123080.0,0.76707608]
[1760013181171,0.21515079,123090.0,123080.0,0.11435608]
[1760013181374,0.21515079,123090.0,123080.0,0.53683608]
[1760013181583,0.21515079,123090.0,123080.0,0.76703608]
[1760013184076,0.21515079,123090.0,123080.0,0.53683608]
[1760013184286,0.19178079,123090.0,123080.0,0.76703608]
[1760013184530,0.19178079,123090.0,123080.0,0.92953201]
[1760013184702,0.19178079,123090.0,123080.0,0.76703608]
[1760013185487,0.21436079,123090.0,123080.0,0.76703608]
[1760013185891,0.19178079,123090.0,123080.0,0.92953201]
[1760013186088,0.16778079,123090.0,123080.0,0.92953201]
[1760013186493,0.15168079,123090.0,123080.0,0.92953201]
[1760013186937,0.16706079,123090.0,123080.0,0.92953201]
[1760013187114,0.17954079,123090.0,123080.0,0.76703608]
[1760013187514,0.16416079,123090.0,123080.0,0.92953201]
[1760013187666,0.16416079,123090.0,123080.0,0.69933201]
[1760013187871,0.16416079,123090.0,123080.0,0.92953201]
[1760013188081,0.18247128,123110.0,123090.0,0.19263463]
[1760013188082,0.03443,123110.0,123090.0,0.19263463]
[1760013188293,0.20508176,123120.0,123100.0,0.27574349]
[1760013188544,0.19788176,123120.0,123110.0,0.1146319]
[1760013188790,0.19788176,123120.0,123110.0,0.59041029]
[1760013189699,0.19788176,123120.0,123110.0,0.59843162]
[1760013189920,0.18967314,123120.0,123110.0,0.59843162]
[1760013190161,0.18967314,123120.0,123110.0,0.59943162]
[1760013190806,0.18967314,123120.0,123110.0,0.12229529]
[1760013191011,0.18967314,123120.0,123110.0,0.77497529]
[1760013191220,0.21225314,123120.0,123110.0,0.53671396]
[1760013191420,0.21225314,123120.0,123110.0,0.76691396]
[1760013191797,0.7542485,123120.0,123110.0,0.08412206]
[1760013192042,0.16245633,123110.0,123100.0,0.08448]
[1760013192240,0.46379378,123110.0,123100.0,0.15732]
[1760013192438,0.21289633,123110.0,123100.0,0.15732]
[1760013192863,0.46379378,123110.0,123100.0,0.15732]
[1760013193067,0.21289633,123110.0,123100.0,0.1874719]
[1760013193403,0.21289633,123110.0,123100.0,0.31692]
[1760013193535,0.21289633,123110.0,123100.0,0.3460719]
[1760013193733,0.21289633,123110.0,123100.0,0.3450719]
[1760013194139,0.21390416,123110.0,123100.0,0.3450719]
[1760013195445,0.24829269,123110.0,123100.0,0.0301519]
[1760013195645,0.24829269,123110.0,123100.0,0.3450719]
[1760013196342,0.49919014,123110.0,123100.0,0.1146319]
[1760013196575,0.49919014,123110.0,123100.0,0.0301519]
[1760013196779,0.83919014,123110.0,123100.0,0.0653119]
[1760013197468,0.83919014,123110.0,123100.0,0.2605119]
[1760013200906,0.83919014,123110.0,123100.0,0.0301519]
[1760013200907,1.09008759,123110.0,123100.0,0.0301519]
[1760013201162,0.16246953,123100.0,123090.0,0.08448]
[1760013201405,1.04559868,123100.0,123090.0,0.02644]
[1760013201622,0.50248273,123090.0,123080.0,8.212e-05]
[1760013201847,0.76586018,123090.0,123080.0,0.23052212]
[1760013202063,0.55292273,123090.0,123080.0,0.26067402]
[1760013202271,0.55292273,123090.0,123080.0,8.212e-05]
[1760013202469,0.55292273,123090.0,123080.0,0.03023402]
[1760013202673,0.80382018,123090.0,123080.0,0.26067402]
[1760013202943,0.55292273,123090.0,123080.0,0.26067402]
[1760013204408,0.80382018,123090.0,123080.0,0.03023402]
[1760013204620,0.80382018,123090.0,123080.0,0.26063402]
[1760013204839,0.88381698,123090.0,123080.0,0.26063402]
[1760013206462,0.88381698,123090.0,123080.0,0.03023402]
[1760013206676,0.63291953,123090.0,123080.0,0.26063402]
[1760013206886,0.88381698,123090.0,123080.0,0.26063402]
[1760013208318,0.88381698,123090.0,123080.0,0.03023402]
[1760013208580,0.88381698,123090.0,123080.0,0.26059402]
[1760013209875,0.63291953,123090.0,123080.0,0.26059402]
[1760013210126,0.88381698,123090.0,123080.0,0.26059402]
[1760013210390,0.88381698,123090.0,123080.0,0.03023402]
[1760013210618,0.88381698,123090.0,123080.0,0.26059402]
[1760013210873,0.88381698,123090.0,123080.0,0.03023402]
[1760013211332,0.63291953,123090.0,123080.0,0.13447402]
[1760013211532,0.88381698,123090.0,123080.0,0.13447402]
[1760013211740,0.63291953,123090.0,123080.0,0.03023402]
[1760013211944,0.63391953,123090.0,123080.0,0.22219402]
[1760013212149,0.63391953,123090.0,123080.0,0.26055402]
[1760013212822,0.88581698,123090.0,123080.0,0.26055402]
[1760013213029,0.63491953,123090.0,123080.0,0.26055402]
[1760013213453,0.21492273,123090.0,123080.0,0.03023402]
[1760013213659,0.16448273,123090.0,123080.0,0.2921016]
[1760013213867,0.16448273,123090.0,123080.0,0.50621201]
[1760013214273,0.18091273,123090.0,123080.0,0.34371608]
[1760013214485,0.19226273,123090.0,123080.0,0.11335608]
[1760013214689,0.21639273,123090.0,123080.0,0.34375608]
[1760013214913,0.02878,123090.0,123080.0,0.50625201]
[1760013215126,0.16348273,123090.0,123080.0,0.50625201]
[1760013215342,0.001,123090.0,123080.0,0.50625201]
[1760013215526,0.16348273,123090.0,123080.0,0.50625201]
[1760013216687,0.16348273,123090.0,123080.0,0.50725201]
[1760013216890,0.001,123090.0,123080.0,0.91974001]
[1760013217096,0.001,123090.0,123080.0,1.06353529]
[1760013217316,0.001,123090.0,123080.0,1.40353529]
[1760013217531,0.001,123090.0,123080.0,1.17313529]
[1760013217965,0.00050396,123100.0,123090.0,0.71577863]
[1760013218176,0.00050396,123100.0,123090.0,0.82579097]
[1760013218386,0.00050396,123100.0,123090.0,1.05627097]
[1760013219023,0.16297349,123100.0,123090.0,0.75290969]
[1760013219247,0.17940349,123100.0,123090.0,1.06786969]
[1760013219461,0.17940349,123100.0,123090.0,1.06886969]
[1760013219864,0.16297349,123100.0,123090.0,1.06886969]
[1760013220092,0.00050396,123100.0,123090.0,1.06986969]
[1760013220316,0.00050396,123100.0,123090.0,0.70023669]
[1760013220541,0.00050396,123100.0,123090.0,0.27775669]
[1760013220749,0.00050396,123100.0,123090.0,0.93067669]
[1760013221382,0.00050396,123100.0,123090.0,0.27775669]
[1760013221571,0.00050396,123100.0,123090.0,0.93067669]
[1760013222323,0.00050396,123100.0,123090.0,0.93063669]
[1760013222528,0.00050396,123100.0,123090.0,0.27775669]
[1760013222741,0.00050396,123100.0,123090.0,0.93059669]
[1760013222957,0.17940349,123100.0,123090.0,0.11527396]
[1760013223172,0.17940349,123100.0,123090.0,0.76811396]
[1760013223173,0.21488349,123100.0,123090.0,0.76811396]
[1760013223375,0.21488349,123100.0,123090.0,0.16960206]
[1760013223583,0.21488349,123100.0,123090.0,0.43015396]
[1760013224195,0.21488349,123100.0,123090.0,0.19975396]
[1760013224422,0.21488349,123100.0,123090.0,0.42915396]
[1760013224573,0.21488349,123100.0,123090.0,0.43015396]
[1760013225744,0.21488349,123100.0,123090.0,0.42915396]
[1760013226030,0.21488349,123100.0,123090.0,0.11527396]
[1760013226237,0.21488349,123100.0,123090.0,0.19975396]
[1760013226449,0.21488349,123100.0,123090.0,0.43007396]
[1760013227301,0.19075349,123100.0,123090.0,0.43007396]
[1760013228844,0.17844349,123100.0,123090.0,0.19975396]
[1760013229067,0.17844349,123100.0,123090.0,0.43007396]
[1760013230221,0.17844349,123100.0,123090.0,0.19975396]
[1760013230463,0.17844349,123100.0,123090.0,0.43003396]
[1760013232171,0.17844349,123100.0,123090.0,0.19975396]
[1760013232373,0.17844349,123100.0,123090.0,0.42999396]
[1760013234373,0.17844349,123100.0,123090.0,0.42995396]
[1760013236288,0.17844349,123100.0,123090.0,0.19975396]
[1760013236491,0.16297349,123100.0,123090.0,0.59243669]
[1760013236865,0.16297349,123100.0,123090.0,0.42995396]
[1760013237994,0.16297349,123100.0,123090.0,0.59243669]
[1760013238179,0.16297349,123100.0,123090.0,0.36223669]
[1760013238416,0.17907349,123100.0,123090.0,0.42995396]
[1760013238651,0.17907349,123100.0,123090.0,0.59243669]
[1760013240220,0.17907349,123100.0,123090.0,0.42995396]
[1760013241335,0.17907349,123100.0,123090.0,0.11527396]
[1760013241578,0.19106349,123100.0,123090.0,0.42995396]
[1760013241982,0.21372349,123100.0,123090.0,0.42995396]
[1760013242297,0.19106349,123100.0,123090.0,0.19975396]
[1760013242502,0.19106349,123100.0,123090.0,0.42995396]
[1760013242924,0.19106349,123100.0,123090.0,0.36223669]
[1760013243140,0.19106349,123100.0,123090.0,0.59243669]
[1760013243542,0.19106349,123100.0,123090.0,0.42995396]
[1760013244297,0.25247654,123100.0,123090.0,0.11527396]
[1760013244509,0.21372349,123100.0,123090.0,0.42995396]
[1760013245398,0.21372349,123100.0,123090.0,0.11527396]
[1760013245566,0.5482041,123100.0,123090.0,0.0321519]
[1760013245816,0.5482041,123100.0,123090.0,0.2623519]
[1760013245998,0.21372349,123100.0,123090.0,0.2322]
[1760013246201,0.2859246,123100.0,123090.0,0.2322]
[1760013246406,0.62040521,123100.0,123090.0,0.0321519]
[1760013246606,0.96040521,123100.0,123090.0,0.03764]
[1760013247008,0.96040521,123100.0,123090.0,0.03664]
[1760013247188,0.96040521,123100.0,123090.0,0.03564]
[1760013247382,0.96040521,123100.0,123090.0,0.0657919]
[1760013248151,0.6259246,123100.0,123090.0,0.0657919]
[1760013248404,0.96040521,123100.0,123090.0,0.0657919]
[1760013249469,0.96040521,123100.0,123090.0,0.0301519]
[1760013250414,0.96140521,123100.0,123090.0,0.0301519]
[1760013250833,0.96240521,123100.0,123090.0,0.0301519]
[1760013252303,0.8902041,123100.0,123090.0,0.0301519]
[1760013257974,0.50248273,123090.0,123080.0,8.212e-05]
[1760013258182,0.84895334,123090.0,123080.0,8.212e-05]
[1760013258397,0.88771334,123090.0,123080.0,8.212e-05]
[1760013259698,0.91210988,123090.0,123080.0,8.212e-05]
[1760013259908,0.99210668,123090.0,123080.0,0.03023402]
[1760013260544,0.65762607,123090.0,123080.0,0.03023402]
[1760013260766,0.99210668,123090.0,123080.0,0.03023402]
[1760013262040,0.99310668,123090.0,123080.0,0.03023402]
[1760013262878,0.99310668,123090.0,123080.0,0.02523402]
[1760013263082,0.99410668,123090.0,123080.0,0.02523402]
[1760013263801,0.99410668,123090.0,123070.0,0.0013495]
[1760013263802,0.83697654,123080.0,123070.0,0.0013495]
[1760013264095,0.84896654,123080.0,123070.0,0.00143185]
[1760013264300,0.96772334,123080.0,123070.0,0.00143185]
[1760013264841,0.97598033,123080.0,123070.0,0.00143185]
[1760013265700,1.00037945,123080.0,123070.0,0.03158375]
[1760013266081,0.92038265,123080.0,123070.0,0.03158375]
[1760013269038,0.58590204,123080.0,123070.0,0.03158375]
[1760013271872,0.56150292,123080.0,123070.0,0.03158375]
[1760013273947,0.55324593,123080.0,123070.0,0.13095672]
[1760013274163,0.19058593,123080.0,123070.0,0.34498581]
[1760013274845,0.17447273,123090.0,123080.0,0.0301519]
[1760013275090,0.16248273,123090.0,123080.0,0.37653948]
[1760013275315,0.16248273,123090.0,123080.0,0.42807396]
[1760013276210,0.16348273,123090.0,123080.0,0.42807396]
[1760013276692,0.16248273,123090.0,123080.0,0.42807396]
[1760013276915,0.16248273,123090.0,123080.0,0.19879396]
[1760013277128,0.16248273,123090.0,123080.0,0.42903396]
[1760013277392,0.00050396,123100.0,123090.0,0.19263463]
[1760013277626,0.16297349,123100.0,123090.0,0.11327396]
[1760013277818,0.16297349,123100.0,123090.0,0.29200496]
[1760013278025,0.00050396,123100.0,123090.0,0.27575669]
[1760013278450,0.00050396,123100.0,123090.0,0.50615669]
[1760013279111,0.00050396,123100.0,123090.0,1.46930969]
[1760013279324,0.00050396,123100.0,123090.0,1.26579997]
[1760013279561,0.00050396,123100.0,123090.0,1.22365197]
[1760013280200,0.00050396,123100.0,123090.0,1.22465197]
[1760013280617,0.00050396,123100.0,123090.0,0.99525197]
[1760013280823,0.00050396,123100.0,123090.0,1.22561197]
[1760013283250,0.00050396,123100.0,123090.0,1.22557197]
[1760013283461,0.00050396,123100.0,123090.0,1.41773197]
[1760013283673,0.00050396,123100.0,123090.0,1.64805197]
[1760013284113,0.00050396,123100.0,123090.0,1.64801197]
[1760013284717,0.00050396,123100.0,123090.0,0.99525197]
[1760013284935,0.00050396,123100.0,123090.0,1.64801197]
[1760013285137,0.00050396,123100.0,123090.0,0.99525197]
[1760013285359,0.17962349,123100.0,123090.0,0.83276924]
[1760013285572,0.17962349,123100.0,123090.0,0.16960206]
[1760013285573,0.25333365,123100.0,123090.0,0.16960206]
[1760013285788,0.00050396,123100.0,123090.0,0.16960206]
[1760013285998,0.00050396,123100.0,123090.0,1.25671879]
[1760013286216,0.00050396,123100.0,123090.0,1.85759069]
[1760013286432,0.00050396,123100.0,123090.0,1.62687069]
[1760013286648,0.0148,123130.0,123120.0,0.19259504]
[1760013286854,0.0148,123130.0,123120.0,0.9289971]
[1760013287064,0.0148,123130.0,123120.0,0.9290771]
[1760013287280,0.0148,123130.0,123120.0,0.6136771]
[1760013287486,0.0148,123130.0,123120.0,0.9290371]
[1760013287644,0.0148,123130.0,123120.0,0.2757171]
[1760013287858,0.01530472,123130.0,123120.0,0.9290371]
[1760013288423,0.17773467,123130.0,123120.0,0.11427396]
[1760013288561,0.20676467,123130.0,123120.0,0.77587167]
[1760013288768,0.23029467,123130.0,123120.0,0.11427396]
[1760013288974,0.23029467,123130.0,123120.0,0.76759396]
[1760013289382,0.20776467,123130.0,123120.0,0.34515396]
[1760013289582,0.20776467,123130.0,123120.0,0.76759396]
[1760013289789,0.20776467,123130.0,123120.0,0.11427396]
[1760013289991,0.20676467,123130.0,123120.0,0.76759396]
[1760013290193,0.17773467,123130.0,123120.0,0.9300371]
[1760013290395,0.17773467,123130.0,123120.0,0.9310371]
[1760013290943,0.17773467,123130.0,123120.0,0.76859396]
[1760013291283,0.17773467,123130.0,123120.0,0.11527396]
[1760013291522,0.17773467,123130.0,123120.0,0.76851396]
[1760013292217,0.17773467,123130.0,123120.0,0.11527396]
[1760013292424,0.17924609,123130.0,123120.0,0.76847396]
[1760013292554,0.17924609,123130.0,123120.0,0.68399396]
[1760013292765,0.17924609,123130.0,123120.0,0.11527396]
[1760013292966,0.17924609,123130.0,123120.0,0.76847396]
[1760013293367,0.17924609,123130.0,123120.0,0.34607396]
[1760013293640,0.17924609,123130.0,123120.0,0.53767396]
[1760013293860,0.23180609,123130.0,123120.0,0.76847396]
[1760013294101,0.23180609,123130.0,123120.0,0.76843396]
[1760013295218,0.23180609,123130.0,123120.0,0.11527396]
[1760013295437,0.23180609,123130.0,123120.0,0.76843396]
[1760013296034,0.20827609,123130.0,123120.0,0.76843396]
[1760013296240,0.20827609,123130.0,123120.0,0.76839396]
[1760013296830,0.23250609,123130.0,123120.0,0.76839396]
[1760013297197,0.23250609,123130.0,123120.0,0.53767396]
[1760013297397,0.23250609,123130.0,123120.0,0.76839396]
[1760013297609,0.23250609,123130.0,123120.0,0.76835396]
[1760013297807,0.23250609,123130.0,123120.0,0.53767396]
[1760013298140,0.23250609,123130.0,123120.0,0.76835396]
[1760013301186,0.23250609,123130.0,123120.0,0.11527396]
[1760013301601,0.48329855,123130.0,123120.0,0.31483396]
[1760013301798,0.56329535,123130.0,123120.0,0.002]
[1760013302006,0.56329535,123130.0,123120.0,0.31704]
[1760013302213,0.57086533,123130.0,123120.0,0.31704]
[1760013302425,0.57086533,123130.0,123120.0,0.3471919]
[1760013302635,0.57086533,123130.0,123120.0,0.3461919]
[1760013302838,0.32007287,123130.0,123120.0,0.3451919]
[1760013303486,0.32007287,123130.0,123120.0,0.3461919]
[1760013303697,0.24007607,123130.0,123120.0,0.3462319]
[1760013303897,0.21584607,123130.0,123120.0,0.42935396]
[1760013304134,0.18682848,123130.0,123120.0,0.3611571]
[1760013304315,0.18682848,123130.0,123120.0,0.5918371]
[1760013304850,0.18682848,123130.0,123120.0,0.43039396]
[1760013305279,0.20214848,123130.0,123120.0,0.19971396]
[1760013305467,0.23816848,123130.0,123120.0,0.43039396]
[1760013305925,0.25568444,123130.0,123120.0,0.11527396]
[1760013306144,0.50648666,123130.0,123120.0,0.19971396]
[1760013306352,0.50648666,123130.0,123120.0,0.31716]
[1760013306561,0.52167876,123130.0,123120.0,0.31716]
[1760013306778,0.86167876,123130.0,123120.0,0.1165919]
[1760013306995,0.86167876,123130.0,123120.0,0.3473119]
[1760013307199,0.86167876,123130.0,123120.0,0.002]
[1760013307405,0.86168331,123130.0,123120.0,0.002]
[1760013307614,0.86168331,123130.0,123120.0,0.0391519]
[1760013307836,0.86168331,123130.0,123120.0,0.0321519]
[1760013308053,0.87919692,123130.0,123120.0,0.1446719]
[1760013308262,0.86168096,123130.0,123120.0,0.1446719]
[1760013308477,0.86168096,123130.0,123120.0,0.2628719]
[1760013308478,0.2708885,123130.0,123120.0,0.2628719]
[1760013308666,0.25337489,123130.0,123120.0,0.2628719]
[1760013308801,0.25337489,123130.0,123120.0,0.0321519]
[1760013309014,0.25337489,123130.0,123120.0,0.13120894]
[1760013309460,0.25337489,123130.0,123120.0,0.34599396]
[1760013309658,0.25337489,123130.0,123120.0,0.11527396]
[1760013309873,0.25337489,123130.0,123120.0,0.34511396]
[1760013311096,0.25338437,123130.0,123120.0,0.34411396]
[1760013311598,0.24678767,123130.0,123120.0,0.34411396]
[1760013311805,0.25438891,123130.0,123120.0,0.11327396]
[1760013312004,0.25438891,123130.0,123120.0,0.12951827]
[1760013312134,0.23058609,123130.0,123120.0,0.36031827]
[1760013312332,0.23058609,123130.0,123120.0,0.34407396]
[1760013313100,0.20635609,123130.0,123120.0,0.34407396]
[1760013313543,0.23058609,123130.0,123120.0,0.34407396]
[1760013313699,0.23158609,123130.0,123120.0,0.34407396]
[1760013314116,0.23058609,123130.0,123120.0,0.34407396]
[1760013314564,0.25338843,123130.0,123120.0,0.34407396]
[1760013314959,0.25338843,123130.0,123120.0,0.11327396]
[1760013315158,0.25338843,123130.0,123120.0,0.34403396]
[1760013315418,0.23818687,123130.0,123120.0,0.34403396]
[1760013315643,0.16246953,123100.0,123090.0,0.50248076]
[1760013315859,0.01179,123120.0,123100.0,0.08444]
[1760013316083,0.01179,123120.0,123110.0,0.47637839]
[1760013316084,0.19715392,123120.0,123110.0,0.47637839]
[1760013316295,0.19715392,123120.0,123110.0,0.34407396]
[1760013316510,0.19715414,123120.0,123110.0,0.50653029]
[1760013316754,0.19715414,123120.0,123110.0,0.34407396]
[1760013317171,0.19715414,123120.0,123110.0,0.50653029]
[1760013317401,0.19715414,123120.0,123110.0,0.34407396]
[1760013317619,0.22138414,123120.0,123110.0,0.34407396]
[1760013319470,0.22138414,123120.0,123110.0,0.11327396]
[1760013319617,0.22138414,123120.0,123110.0,0.19775396]
[1760013319839,0.22138414,123120.0,123110.0,0.42851396]
[1760013320396,0.22138414,123120.0,123110.0,0.19775396]
[1760013320578,0.22138414,123120.0,123110.0,0.42851396]
[1760013322736,0.22138648,123120.0,123110.0,0.42851396]
[1760013323210,0.19816417,123120.0,123110.0,0.42851396]
[1760013324274,0.22239417,123120.0,123110.0,0.42851396]
[1760013324532,0.22239417,123120.0,123110.0,0.42843396]
[1760013325644,0.2223959,123120.0,123110.0,0.42843396]
[1760013326400,0.21479083,123120.0,123110.0,0.42843396]
[1760013328142,0.21479083,123120.0,123110.0,0.19775396]
[1760013328385,0.21479083,123120.0,123110.0,0.42839396]
[1760013330359,0.21479083,123120.0,123110.0,0.42835396]
[1760013330588,0.19056083,123120.0,123110.0,0.42835396]
[1760013331118,0.16653236,123130.0,123120.0,0.0301519]
[1760013331342,0.16653236,123130.0,123120.0,0.29196141]
[1760013331549,0.15474236,123130.0,123120.0,0.11327396]
[1760013331751,0.17151613,123130.0,123120.0,0.12951827]
[1760013333734,0.18334613,123130.0,123120.0,0.36007827]
[1760013333935,0.18334613,123130.0,123120.0,0.11327396]
[1760013334139,0.18334613,123130.0,123120.0,0.12951827]
[1760013334341,0.18334613,123130.0,123120.0,0.42831396]
[1760013334342,0.20768613,123130.0,123120.0,0.42831396]
[1760013335696,0.18334613,123130.0,123120.0,0.19775396]
[1760013335979,0.18334613,123130.0,123120.0,0.42827396]
[1760013336562,0.20768613,123130.0,123120.0,0.42827396]
[1760013337117,0.20768613,123130.0,123120.0,0.11327396]
[1760013337318,0.5226295,123130.0,123120.0,0.42823396]
[1760013338166,0.16245633,123110.0,123100.0,0.00134905]
[1760013338303,0.17428633,123110.0,123100.0,0.41567806]
[1760013338522,0.21489633,123110.0,123100.0,0.42958301]
[1760013339349,0.21489633,123110.0,123100.0,0.43058301]
[1760013340016,0.19055633,123110.0,123100.0,0.43058301]
[1760013340469,0.17428488,123120.0,123110.0,0.0301519]
[1760013340649,0.19055488,123120.0,123110.0,0.12951959]
[1760013340846,0.19055488,123120.0,123110.0,0.35999959]
[1760013341131,0.21489488,123120.0,123110.0,0.34375396]
[1760013344675,0.19055488,123120.0,123110.0,0.34375396]
[1760013344915,0.13845488,123120.0,123110.0,0.50621029]
[1760013345123,0.16244314,123120.0,123110.0,0.27573029]
[1760013345354,0.16244314,123120.0,123110.0,0.50613029]
[1760013345855,0.17519762,123130.0,123110.0,0.50613029]
[1760013346108,0.19026762,123130.0,123120.0,0.12951827]
[1760013346563,0.19026762,123130.0,123120.0,0.35995827]
[1760013346788,0.19026762,123130.0,123120.0,0.34371396]
[1760013348044,0.21494762,123130.0,123120.0,0.11327396]
[1760013348256,0.19026762,123130.0,123120.0,0.35991827]
[1760013348465,0.19026762,123130.0,123120.0,0.34367396]
[1760013352551,0.16293372,123130.0,123120.0,0.5061171]
[1760013352714,0.13893372,123130.0,123120.0,0.5060371]
[1760013353694,0.13893372,123130.0,123120.0,0.5060771]
[1760013353914,0.13893372,123130.0,123120.0,0.68155396]
[1760013354121,0.13893372,123130.0,123120.0,0.76603396]
[1760013355528,0.13893372,123130.0,123120.0,0.9284771]
[1760013355732,0.13893372,123130.0,123120.0,0.11327396]
[1760013356004,0.13893372,123130.0,123120.0,0.76591396]
[1760013356287,0.15490372,123130.0,123120.0,0.76591396]
[1760013356520,0.16734372,123130.0,123120.0,0.76591396]
[1760013357165,0.16242995,123130.0,123120.0,0.9293571]
[1760013357840,0.16242995,123130.0,123120.0,0.9303571]
[1760013360496,0.16242995,123130.0,123120.0,0.9303171]
[1760013360974,0.16242995,123130.0,123120.0,0.2777171]
[1760013361219,0.19083995,123130.0,123120.0,0.34551396]
[1760013361443,0.19083995,123130.0,123120.0,0.76783396]
[1760013361643,0.19083995,123130.0,123120.0,0.9302771]
[1760013361830,0.19083995,123130.0,123120.0,0.11527396]
[1760013362034,0.19083995,123130.0,123120.0,0.76783396]
[1760013362235,0.19083995,123130.0,123120.0,0.11527396]
[1760013362443,0.19083995,123130.0,123120.0,0.76783396]
[1760013363989,0.19083995,123130.0,123120.0,0.11527396]
[1760013364204,0.19083995,123130.0,123120.0,0.76783396]
[1760013365164,0.19083995,123130.0,123120.0,0.11527396]
[1760013365410,0.21538995,123130.0,123120.0,0.11527396]
[1760013365614,0.21538995,123130.0,123120.0,0.42995396]
[1760013367261,0.21538995,123130.0,123120.0,0.19971396]
[1760013367498,0.21538995,123130.0,123120.0,0.42995396]
[1760013369533,0.21538995,123130.0,123120.0,0.11527396]
[1760013369699,0.21538995,123130.0,123120.0,0.42995396]
[1760013375494,0.19083995,123130.0,123120.0,0.42995396]
[1760013377815,0.16242995,123130.0,123120.0,0.42995396]
[1760013378025,0.17839995,123130.0,123120.0,0.42995396]
[1760013379368,0.16242995,123130.0,123120.0,0.42995396]
[1760013381831,0.17839995,123130.0,123120.0,0.42995396]
[1760013382584,0.16242995,123130.0,123120.0,0.42995396]
[1760013383247,0.16242995,123130.0,123120.0,0.19971396]
[1760013383429,0.17839995,123130.0,123120.0,0.42991396]
[1760013385127,0.21538995,123130.0,123120.0,0.11527396]
[1760013385340,0.21538995,123130.0,123120.0,0.76779396]
[1760013385816,0.21538995,123130.0,123120.0,0.11527396]
[1760013386062,0.62313958,123130.0,123120.0,0.1165919]
[1760013386245,0.62313958,123130.0,123120.0,0.002]
[1760013386492,0.62313958,123130.0,123120.0,0.08644]
[1760013386708,0.21538995,123130.0,123120.0,0.1296719]
[1760013388262,0.21538995,123130.0,123120.0,0.1165919]
[1760013388695,0.21538995,123130.0,123120.0,0.3467919]
[1760013390155,0.23977552,123130.0,123120.0,0.3467919]
[1760013390920,0.21538995,123130.0,123120.0,0.3467919]
[1760013393387,0.21538995,123130.0,123120.0,0.1165919]
[1760013393622,0.21538995,123130.0,123120.0,0.3467919]
[1760013393822,0.21538995,123130.0,123120.0,0.1165919]
[1760013394028,0.21538995,123130.0,123120.0,0.3467919]
[1760013395552,0.21538995,123130.0,123120.0,0.42991396]
[1760013401586,0.46616353,123130.0,123120.0,0.42991396]
[1760013403239,0.46616353,123130.0,123120.0,0.19971396]
[1760013403420,0.46616353,123130.0,123120.0,0.42891396]
[1760013403587,0.46616353,123130.0,123120.0,0.42791396]
[1760013403805,0.21538995,123130.0,123120.0,0.42791396]
[1760013406095,0.21538995,123130.0,123120.0,0.19771396]
[1760013406309,0.21538995,123130.0,123120.0,0.42791396]
[1760013409789,0.19138995,123130.0,123120.0,0.19771396]
[1760013410028,0.16683995,123130.0,123120.0,0.42791396]
[1760013410433,0.19120995,123130.0,123120.0,0.42791396]
[1760013415920,0.19120995,123130.0,123120.0,0.19771396]
[1760013416126,0.19120995,123130.0,123120.0,0.42791396]
[1760013416830,0.19120995,123130.0,123120.0,0.19771396]
[1760013417013,0.19120995,123130.0,123120.0,0.42791396]
[1760013417849,0.19120995,123130.0,123120.0,0.19771396]
[1760013418054,0.19120995,123130.0,123120.0,0.42791396]
[1760013421169,0.21559348,123130.0,123120.0,0.42791396]
[1760013422105,0.21559348,123130.0,123120.0,0.19771396]
[1760013422314,0.46636706,123130.0,123120.0,0.42787396]